fUSD/lending_fUSD_20250120
["ID","MTS","AMOUNT","RATE_DAILY","PERIOD"]
[349624360,1737331843467,-500.0,0.00021855,2]
[349624361,1737331843478,-500.0,0.00021855,2]
[349624362,1737331843494,-500.0,0.00021855,2]
[349624363,1737331843503,-500.0,0.00021855,2]
[349624364,1737331843512,-500.0,0.00021855,2]
[349624365,1737331843524,-500.0,0.00021855,2]
[349624366,1737331843534,-500.0,0.00021855,2]
[349624367,1737331843544,-500.0,0.00021855,2]
[349624368,1737331843554,-500.0,0.00021855,2]
[349624370,1737331843565,-500.0,0.00021855,2]
[349624372,1737331843575,-500.0,0.00021855,2]
[349624374,1737331843586,-500.0,0.00021855,2]
[349624376,1737331843597,-568.58,0.00021855,2]
[349624378,1737331843607,-500.0,0.00021855,2]
[349624381,1737331843617,-500.0,0.00021855,2]
[349624383,1737331843627,-2037.09,0.00021855,2]
[349624385,1737331843637,-500.0,0.00021855,2]
[349624387,1737331843647,-500.0,0.00021855,2]
[349624389,1737331843657,-500.0,0.00021855,2]
[349624391,1737331843667,-1003.46,0.00021855,2]
[349624394,1737331843677,-1650.22,0.00021855,2]
[349624396,1737331843687,-500.0,0.00021855,2]
[349624398,1737331843696,-500.0,0.00021855,2]
[349624400,1737331843706,-873.76,0.00021855,2]
[349624402,1737331843717,-500.0,0.00021855,2]
[349624404,1737331843726,-500.0,0.00021855,2]
[349624406,1737331843742,-500.0,0.00021855,2]
[349624409,1737331843752,-500.0,0.00021855,2]
[349624411,1737331843762,-500.0,0.00021856,2]
[349624414,1737331843772,-1308.01,0.00021856,2]
[349624416,1737331843782,-500.0,0.00021856,2]
[349624418,1737331843792,-595.86,0.00021856,2]
[349624420,1737331843801,-3190.58,0.00021856,2]
[349624422,1737331843812,-515.69,0.00021856,2]
[349624424,1737331843822,-646.9,0.00021856,2]
[349624427,1737331843832,-1007.69,0.00021856,2]
[349624430,1737331843842,-1003.12,0.00021856,2]
[349624432,1737331843852,-500.0,0.00021856,2]
[349624434,1737331843863,-865.71,0.00021856,2]
[349624436,1737331843873,-500.0,0.00021856,2]
[349624438,1737331843883,-500.0,0.00021856,2]
[349624440,1737331843893,-1789.74,0.00021856,2]
[349624442,1737331843903,-989.04,0.00021856,2]
[349624444,1737331843913,-542.42,0.00021856,2]
[349624445,1737331843923,-613.68001056,0.00021856,2]
[349624446,1737331843933,-500.0,0.00021856,2]
[349624447,1737331843946,-505.45,0.00021856,2]
[349624448,1737331843957,-2667.26,0.00021856,2]
[349624449,1737331843967,-500.0,0.00021856,2]
[349624450,1737331843978,-797.44,0.00021856,2]
[349624451,1737331843992,-981.74,0.00021856,2]
[349624452,1737331844002,-500.0,0.00021856,2]
[349624453,1737331844017,-535.63,0.00021856,2]
[349624454,1737331844028,-500.0,0.00021856,2]
[349624455,1737331844039,-500.0,0.00021857,2]
[349624456,1737331844050,-150.86,0.00021863,2]
[349624457,1737331844061,-150.0,0.00021863,2]
[349624459,1737331844071,-980.56,0.00021863,2]
[349624461,1737331844081,-150.0,0.00021863,2]
[349624463,1737331844092,-874.46,0.00021863,2]
[349624465,1737331844102,-437.55,0.00021863,2]
[349624466,1737331844112,-437.55,0.00021863,2]
[349624467,1737331844123,-435.93,0.00021863,2]
[349624468,1737331844133,-151.04,0.00021863,2]
[349624469,1737331844144,-1019.0,0.000219,2]
[349624470,1737331844155,-4208.3875,0.000219,2]
[349624471,1737331844165,-1000.0,0.000219,2]
[349624472,1737331844176,-665.36931186,0.000219,3]
[349624473,1737331844186,-337.14997498,0.000219,2]
[349624474,1737331844196,-580.33545034,0.00021917,2]
[349624475,1737331844205,-1000.0,0.00021917,3]
[349624476,1737331844216,-584.9939502,0.00021917,3]
[349624477,1737331844226,-150.0,0.00021918,2]
[349624478,1737331844239,-4000.0,0.00021918,2]
[349624479,1737331844249,-357.1729359,0.00021973,2]
[349624480,1737331844259,-500.0,0.0002199,2]
[349624481,1737331844269,-77628.83640589,0.00021997,2]
[349624482,1737331844279,-1000.0,0.00021999,2]
[349624483,1737331844288,-500.0,0.00021999,2]
[349624484,1737331844298,-353236.39835627,0.00022,2]
[349624485,1737331844600,-1553.56281362,0.00022,2]
[349624486,1737331844612,-2245.50326023,0.00022,2]
[349624487,1737331844623,-5340.74607242,0.00022,2]
[349624488,1737331844634,-13103.37707859,0.00022,2]
[349624489,1737331844644,-354.14252656,0.00022,2]
[349624490,1737331844653,-622122.48039705,0.00022,2]
[349624491,1737331844666,-2607367.13772285,0.00022,2]
[349624492,1737331844677,-105473.32727622,0.00022,2]
[349624493,1737331844688,-162272.9547647,0.00022,2]
[349624494,1737331845145,-500.0,0.00020485,2]
[349624495,1737331845156,-500.0,0.00020485,2]
[349624496,1737331845165,-500.0,0.00020485,2]
[349624497,1737331845175,-524.65,0.00020486,2]
[349624498,1737331845185,-606.63,0.00020486,2]
[349624499,1737331845195,-500.0,0.00020486,2]
[349624500,1737331845204,-169.77240835,0.00020759,2]
[349624501,1737331845214,-500.0,0.0002076,2]
[349624502,1737331845223,-500.0,0.00021034,2]
[349624503,1737331845236,-500.0,0.00021306,2]
[349624504,1737331845245,-486.62,0.00021308,2]
[349624505,1737331845256,-500.0,0.0002158,2]
[349624506,1737331845265,-500.0,0.00021854,2]
[349624507,1737331845274,-500.0,0.00021855,2]
[349624508,1737331845284,-16984.74408495,0.00022,2]
[349624509,1737331845296,-1683.4024274,0.00022,2]
[349624510,1737331845307,-720.16650024,0.00022,2]
[349624511,1737331845318,-444.00319075,0.00022,2]
[349624512,1737331845330,-848.63908249,0.00022,2]
[349624513,1737331845340,-1598.19645274,0.00022,2]
[349624514,1737331845351,-25262.5,0.00022,2]
[349624515,1737331845362,-53516.9968,0.00022,2]
[349624516,1737331845373,-1974.26188828,0.00022,2]
[349624517,1737331845385,-72688.65638691,0.00022,2]
[349624518,1737331845400,-13622.73867918,0.00022,2]
[349624519,1737331845411,-1814.03961151,0.00022,2]
[349624520,1737331845422,-524.97384048,0.00022,2]
[349624521,1737331845438,-19811.68504087,0.00022,2]
[349624522,1737331845450,-4824.83083899,0.00022,2]
[349624523,1737331845462,-305724.20079265,0.00022,2]
[349624524,1737331845473,-378.00513087,0.00022,2]
[349624525,1737331845489,-1733.57523848,0.00022,2]
[349624526,1737331845501,-4668.99488128,0.00022,2]
[349624527,1737331845514,-431.36051985,0.00022,2]
[349624528,1737331845526,-481.80625497,0.00022,2]
[349624529,1737331845637,-355.3550009,0.00020484,2]
[349624530,1737331845649,-144.6449991,0.00020484,2]
[349624531,1737331845659,-500.0,0.00020485,2]
[349624533,1737331845669,-299.96,0.00020758,2]
[349624534,1737331845679,-7886.33026855,0.00022,2]
[349624535,1737331845690,-11684.59269293,0.00022,2]
[349624536,1737331845701,-2530.618887,0.00022,2]
[349624537,1737331845712,-263.85128612,0.00022,2]
[349624539,1737331845723,-494.09731466,0.00022,2]
[349624540,1737331845738,-409.41300291,0.00022,2]
[349624541,1737331845901,-500.0,0.00020484,2]
[349624542,1737331845910,-6.62630079,0.00020485,2]
[349624543,1737331845922,-352.72799642,0.00020485,2]
[349624544,1737331845933,-140.64570279,0.00020485,2]
[349624545,1737331845943,-278.85242509,0.00020485,2]
[349624546,1737331845953,-500.0,0.00020486,2]
[349624547,1737331845963,-500.0,0.00020759,2]
[349624548,1737331845972,-509.8,0.0002076,2]
[349624549,1737331845982,-6379.6082653,0.00022,2]
[349624550,1737331846009,-728.39843879,0.00022,2]
[349624551,1737331846035,-11137.9901144,0.00022,2]
[349624552,1737331846057,-15237.51556,0.00022,2]
[349624553,1737331846069,-356.9999945,0.00022,2]
[349624554,1737331846081,-1301.07514146,0.00022,2]
[349624555,1737331846092,-2362.76890421,0.00022,2]
[349624556,1737331846214,-500.0,0.00020484,2]
[349624557,1737331846225,-500.0,0.00020485,2]
[349624558,1737331846239,-500.0,0.00020486,2]
[349624559,1737331846248,-500.0,0.00020486,2]
[349624560,1737331846258,-978.44493,0.00022,2]
[349624561,1737331846270,-650.76749764,0.00022,2]
[349624562,1737331846281,-1149.357475,0.00022,2]
[349624563,1737331846293,-5089.30428,0.00022,2]
[349624564,1737331846304,-2159.47988,0.00022,2]
[349624565,1737331846315,-343.20436999,0.00022,2]
[349624566,1737331846326,-1015.7,0.00022,2]
[349624567,1737331846442,-1000.0,0.00022,2]
[349624570,1737331846457,-300.0,0.0002076,2]
[349624572,1737331846469,-200.0,0.0002076,2]
[349624574,1737331846477,-2318.12990246,0.00022,2]
[349624576,1737331846490,-678.14139368,0.00022,2]
[349624582,1737331846544,-866.0,0.00022,2]
[349624584,1737331846553,-402700.11959959,0.00022,2]
[349624587,1737331846564,-350.64635233,0.00022,2]
[349624889,1737331893613,-1832.0,0.00017,2]
[349624890,1737331893637,-5559.0,0.000174,3]
[349624891,1737331924401,-609.0,0.000178,5]
[349624896,1737332321915,150.39,0.00010137,2]
[349624899,1737332597268,1149.15,0.00019467,30]
[349624901,1737332708449,4387066.09198111,0.00012,2]
[349624942,1737333032340,-170.94,0.00012329,2]
[349624943,1737333032350,-1756.71383065,0.0001439,2]
[349624944,1737333032360,-1036.59917983,0.00014788,2]
[349624945,1737333032370,-1428.87920704,0.00014888,2]
[349624946,1737333032382,-1095.56732201,0.000149,2]
[349624947,1737333032392,-550.0,0.00015,2]
[349624948,1737333032402,-4950.0,0.000158,5]
[349624949,1737333032411,-250.0,0.0001629,2]
[349624950,1737333032423,-600.0,0.00017,2]
[349624951,1737333032433,-1186.87,0.00017772,2]
[349624952,1737333032443,-23900.0,0.00018661,2]
[349624953,1737333032453,-250.0,0.00018736,2]
[349624954,1737333032462,-250.0,0.00018767,2]
[349624955,1737333032472,-650.0,0.00019,2]
[349624956,1737333032482,-10760.29364891,0.00019,2]
[349624957,1737333032492,-14675.31,0.0001904,2]
[349624958,1737333032502,-150.44,0.00019051,2]
[349624959,1737333032512,-150.0,0.00019163,2]
[349624960,1737333032522,-500.0,0.00019164,2]
[349624961,1737333032531,-600.0,0.00019164,2]
[349624962,1737333032540,-500.0,0.00019233,2]
[349624963,1737333032549,-200.0,0.00019398,2]
[349624964,1737333032559,-643.68,0.00019404,2]
[349624965,1737333032568,-707.5,0.00019532,2]
[349624966,1737333032582,-1942.58946161,0.0001961,2]
[349624967,1737333032592,-169.52,0.00019619,2]
[349624968,1737333032601,-176.86,0.00019726,14]
[349624969,1737333032611,-425.40302703,0.000198,2]
[349624970,1737333032620,-187.82,0.00019826,2]
[349624972,1737333032629,-1000.0,0.00019877,2]
[349624974,1737333032639,-16924.86739304,0.000199,7]
[349624975,1737333032649,-1804.202,0.00019945,2]
[349624976,1737333032658,-250.0,0.00019945,2]
[349624977,1737333032669,-1186.87,0.00020036,2]
[349624978,1737333032678,-360.34,0.00020086,2]
[349624979,1737333032688,-9708.73492988,0.000201,2]
[349624980,1737333032700,-1274.7736258,0.000201,2]
[349624981,1737333032710,-833.3775,0.00020185,2]
[349624982,1737333032720,-265.8519,0.00020185,2]
[349624983,1737333032730,-907.55429588,0.00020246,2]
[349624984,1737333032751,-592.44570412,0.00020246,2]
[349624985,1737333032761,-600.0,0.0002026,2]
[349624986,1737333032771,-49664.08337428,0.00020285,2]
[349625011,1737333038104,-1036.59917982,0.000148,2]
[349625012,1737333038115,-47059.48400697,0.00020285,2]
[349625013,1737333038128,-1512.92806762,0.00020285,2]
[349625014,1737333038141,-1383.91575475,0.00020285,2]
[349625015,1737333038163,-1075.20006317,0.00020285,2]
[349625016,1737333038178,-1206.74718755,0.00020285,2]
[349625017,1737333038192,-597.33381692,0.00020285,2]
[349625018,1737333038207,-6903.77953316,0.00020285,2]
[349625019,1737333038220,-10712.1997313,0.00020285,2]
[349625020,1737333038233,-3600.0,0.00020285,2]
[349625021,1737333038253,-507.51175417,0.00020285,2]
[349625022,1737333038266,-18999.7807787,0.00020285,2]
[349625023,1737333038276,-320.01255017,0.00020285,2]
[349625024,1737333038286,-168.24094649,0.00020285,2]
[349625025,1737333038295,-150.0,0.00020356,2]
[349625026,1737333038306,-150.0,0.00020356,2]
[349625027,1737333038316,-150.0,0.00020356,2]
[349625028,1737333038331,-150.0,0.00020356,2]
[349625029,1737333038344,-150.0,0.00020356,2]
[349625030,1737333038354,-178.02,0.00020374,2]
[349625031,1737333038365,-178.02,0.00020375,2]
[349625032,1737333038375,-500.0,0.00020383,2]
[349625033,1737333038391,-500.0,0.00020383,2]
[349625034,1737333038401,-981.01,0.00020384,2]
[349625035,1737333038411,-500.0,0.00020384,2]
[349625036,1737333038421,-500.0,0.00020384,2]
[349625037,1737333038431,-2392.93,0.00020384,2]
[349625038,1737333038441,-500.0,0.00020384,2]
[349625039,1737333038451,-755.77,0.00020384,2]
[349625040,1737333038461,-500.0,0.00020384,2]
[349625041,1737333038477,-752.34,0.00020384,2]
[349625042,1737333038487,-500.0,0.00020384,2]
[349625043,1737333038498,-500.0,0.00020384,2]
[349625044,1737333038508,-649.29,0.00020384,2]
[349625046,1737333038518,-514.61,0.00020384,2]
[349625047,1737333038528,-1342.3,0.00020384,2]
[349625049,1737333038538,-912.67,0.00020384,2]
[349625051,1737333038548,-1257.41,0.00020384,2]
[349625053,1737333038558,-500.0,0.00020384,2]
[349625054,1737333038568,-1149.15,0.00020384,2]
[349625056,1737333038582,-500.0,0.00020384,2]
[349625058,1737333038592,-931.22,0.00020384,2]
[349625059,1737333038602,-2911.64,0.00020384,2]
[349625061,1737333038612,-598.08,0.00020384,2]
[349625063,1737333038622,-500.0,0.00020384,2]
[349625065,1737333038631,-500.0,0.00020384,2]
[349625067,1737333038642,-367.67852413,0.00020384,2]
[349625070,1737333038651,-1239.33,0.00020384,2]
[349625072,1737333038662,-500.0,0.00020384,2]
[349625075,1737333038673,-35650.49620051,0.00020385,2]
[349625078,1737333038685,-1320.33094966,0.00020385,2]
[349625081,1737333038697,-10297.64589016,0.00020385,2]
[349625084,1737333038709,-1860.04352126,0.00020385,2]
[349625088,1737333038724,-506.85,0.00020385,2]
[349625091,1737333038735,-4087.13897112,0.00020385,2]
[349625094,1737333038747,-65762.49999998,0.00020385,2]
[349625096,1737333038763,-253.09186731,0.00020385,2]
[349625097,1737333038773,-220.7537,0.00020385,2]
[349625098,1737333038783,-311.8727,0.00020385,2]
[349625099,1737333038792,-356.10533901,0.00020443,2]
[349625100,1737333038802,-342.93918526,0.00020443,2]
[349625101,1737333038812,-150.44,0.00020461,2]
[349625102,1737333038822,-178.02,0.00020475,2]
[349625103,1737333038839,-578.53,0.00020484,2]
[349625104,1737333038848,-500.0,0.00020484,2]
[349625105,1737333038858,-2619.34,0.00020484,2]
[349625106,1737333038869,-500.0,0.00020484,2]
[349625107,1737333038879,-704.0,0.00020484,2]
[349625108,1737333038889,-471.538641,0.00020484,2]
[349625109,1737333038899,-162.597979,0.00020484,2]
[349625110,1737333038908,-159.550044,0.00020484,2]
[349625111,1737333038918,-1110.54,0.00020484,2]
[349625112,1737333038928,-12.87252576,0.00020484,2]
[349625114,1737333040254,-500.0,0.00020384,2]
[349625115,1737333040266,-487.12747424,0.00020484,2]
[349625116,1737333040278,-500.0,0.00020484,2]
[349625117,1737333040289,-500.0,0.00020484,2]
[349625118,1737333040299,-1131.100704,0.00020484,2]
[349625119,1737333040310,-882.17062172,0.00020484,2]
[349625120,1737333040336,-1125.077993,0.00020484,2]
[349625121,1737333040349,-857.12138528,0.00020484,2]
[349625122,1737333040359,-500.0,0.00020484,2]
[349625123,1737333040370,-500.0,0.00020484,2]
[349625124,1737333040383,-500.0,0.00020484,2]
[349625125,1737333040395,-500.0,0.00020484,2]
[349625126,1737333040405,-1850.11,0.00020484,2]
[349625127,1737333040415,-44.84834404,0.00020484,2]
[349625128,1737333040427,-596.69165596,0.00020484,2]
[349625129,1737333040438,-500.0,0.00020484,2]
[349625130,1737333040448,-563.38747827,0.00020484,2]
[349625131,1737333040461,-97.13252173,0.00020484,2]
[349625132,1737333040471,-500.0,0.00020484,2]
[349625133,1737333040482,-6.61372853,0.00020484,2]
[349625134,1737333040494,-493.38627147,0.00020484,2]
[349625135,1737333040506,-500.0,0.00020484,2]
[349625136,1737333040516,-361.54839316,0.00020484,2]
[349625137,1737333040528,-138.45160684,0.00020484,2]
[349625138,1737333040539,-500.0,0.00020484,2]
[349625139,1737333040549,-500.0,0.00020484,2]
[349625140,1737333040559,-110.9147818,0.00020485,2]
[349625141,1737333040572,-267.08641765,0.00020485,2]
[349625142,1737333040588,-500.0,0.00020485,2]
[349625143,1737333040598,-500.0,0.00020485,2]
[349625144,1737333040608,-500.0,0.00020485,2]
[349625145,1737333040618,-502.6940688,0.00020485,2]
[349625146,1737333040628,-237.43690808,0.00020485,2]
[349625147,1737333040638,-500.0,0.00020485,2]
[349625148,1737333040648,-535.76439378,0.00020485,2]
[349625149,1737333040657,-187.67060877,0.00020485,2]
[349625150,1737333040670,-312.32939123,0.00020485,2]
[349625161,1737333040935,-532.98598129,0.00020485,2]
[349625162,1737333040946,-500.0,0.00020485,2]
[349625163,1737333040958,-500.0,0.00020485,2]
[349625164,1737333040969,-500.6201531,0.00020485,2]
[349625165,1737333040979,-500.0,0.00020485,2]
[349625166,1737333040989,-396.57995985,0.00020485,2]
[349625167,1737333040999,-491.81114779,0.00020485,2]
[349625168,1737333041011,-8.18885221,0.00020485,2]
[349625169,1737333041021,-275.89460988,0.00020485,2]
[349625170,1737333041030,-500.0,0.00020485,2]
[349625171,1737333041040,-422.34714852,0.00020485,2]
[349625172,1737333041050,-155.638521,0.00020485,2]
[349625173,1737333041060,-500.70011739,0.00020485,2]
[349625174,1737333041070,-500.0,0.00020485,2]
[349625175,1737333041083,-501.99067918,0.00020485,2]
[349625176,1737333041093,-500.90117774,0.00020485,2]
[349625177,1737333041103,-172.30564277,0.00020485,2]
[349625178,1737333041112,-501.72815042,0.00020485,2]
[349625179,1737333041121,-500.0,0.00020485,2]
[349625180,1737333041131,-500.0,0.00020485,2]
[349625181,1737333041141,-500.0,0.00020485,2]
[349625182,1737333041150,-500.0,0.00020485,2]
[349625184,1737333041159,-500.0,0.00020485,2]
[349625185,1737333041169,-500.0,0.00020485,2]
[349625186,1737333041183,-500.0,0.00020485,2]
[349625187,1737333041193,-500.0,0.00020485,2]
[349625188,1737333041202,-500.0,0.00020485,2]
[349625189,1737333041211,-500.56221145,0.00020485,2]
[349625190,1737333041221,-500.0,0.00020485,2]
[349625191,1737333041231,-500.0,0.00020485,2]
[349625192,1737333041241,-500.0,0.00020485,2]
[349625193,1737333041251,-500.0,0.00020485,2]
[349625194,1737333041260,-300.0,0.00020485,2]
[349625195,1737333041270,-500.0,0.00020485,2]
[349625196,1737333041280,-500.0,0.00020485,2]
[349625197,1737333041290,-502.75490522,0.00020485,2]
[349625198,1737333041300,-500.0,0.00020485,2]
[349625199,1737333041310,-500.0,0.00020485,2]
[349625200,1737333041321,-500.0,0.00020485,2]
[349625201,1737333041334,-500.0,0.00020485,2]
[349625202,1737333041344,-182.84734115,0.00020485,2]
[349625203,1737333041353,-500.0,0.00020485,2]
[349625204,1737333041363,-500.0,0.00020485,2]
[349625205,1737333041373,-500.0,0.00020485,2]
[349625206,1737333041384,-500.0,0.00020485,2]
[349625207,1737333041395,-500.0,0.00020485,2]
[349625208,1737333041405,-500.0,0.00020485,2]
[349625209,1737333041415,-500.0,0.00020485,2]
[349625210,1737333041427,-500.0,0.00020485,2]
[349625211,1737333041436,-500.0,0.00020485,2]
[349625212,1737333041446,-500.0,0.00020485,2]
[349625213,1737333041455,-500.68071562,0.00020485,2]
[349625214,1737333041466,-500.0,0.00020485,2]
[349625215,1737333041476,-500.0,0.00020485,2]
[349625216,1737333041485,-500.0,0.00020485,2]
[349625217,1737333041495,-500.0,0.00020485,2]
[349625218,1737333041505,-500.0,0.00020485,2]
[349625219,1737333041515,-500.0,0.00020485,2]
[349625220,1737333041525,-500.0,0.00020485,2]
[349625221,1737333041535,-338.42551964,0.00020485,2]
[349625222,1737333041545,-500.0,0.00020485,2]
[349625223,1737333041554,-169.54281562,0.00020485,2]
[349625224,1737333041564,-500.0,0.00020485,2]
[349625225,1737333041573,-500.0,0.00020485,2]
[349625226,1737333041588,-500.0,0.00020485,2]
[349625227,1737333041598,-416.17299085,0.00020485,2]
[349625228,1737333041623,-554.43,0.00020384,2]
[349625229,1737333041633,-83.82700915,0.00020485,2]
[349625230,1737333041643,-500.0,0.00020485,2]
[349625231,1737333041653,-500.0,0.00020485,2]
[349625232,1737333041662,-150.0,0.00020485,2]
[349625233,1737333041672,-500.0,0.00020485,2]
[349625234,1737333041682,-500.0,0.00020485,2]
[349625235,1737333041692,-500.0,0.00020485,2]
[349625236,1737333041702,-677.87964315,0.00020485,2]
[349625237,1737333041712,-500.0,0.00020485,2]
[349625238,1737333041722,-500.0,0.00020485,2]
[349625239,1737333041731,-100.9083446,0.00020485,2]
[349625240,1737333041743,-399.0916554,0.00020485,2]
[349625241,1737333041752,-500.0,0.00020485,2]
[349625242,1737333041763,-500.0,0.00020485,2]
[349625243,1737333041772,-500.0,0.00020485,2]
[349625244,1737333041782,-500.0,0.00020485,2]
[349625245,1737333041806,-160.11129526,0.00020485,2]
[349625246,1737333041817,-500.0,0.00020485,2]
[349625247,1737333041832,-500.0,0.00020485,2]
[349625248,1737333041842,-500.0,0.00020485,2]
[349625249,1737333041852,-500.0,0.00020485,2]
[349625250,1737333041863,-500.0,0.00020485,2]
[349625251,1737333041874,-500.0,0.00020485,2]
[349625252,1737333041884,-500.0,0.00020485,2]
[349625253,1737333041896,-500.0,0.00020485,2]
[349625254,1737333041906,-500.0,0.00020485,2]
[349625255,1737333041917,-461.73437434,0.00020485,2]
[349625256,1737333041930,-38.26562566,0.00020485,2]
[349625257,1737333041941,-500.0,0.00020485,2]
[349625258,1737333041951,-268.65596954,0.00020485,2]
[349625259,1737333041963,-232.3788177,0.00020485,2]
[349625260,1737333041972,-500.0,0.00020485,2]
[349625261,1737333041982,-500.0,0.00020485,2]
[349625262,1737333041992,-153.22728888,0.00020485,2]
[349625287,1737333043205,-346.77271112,0.00020485,2]
[349625289,1737333043215,-500.0,0.00020485,2]
[349625290,1737333043225,-500.0,0.00020485,2]
[349625291,1737333043235,-500.0,0.00020485,2]
[349625292,1737333043245,-500.0,0.00020485,2]
[349625293,1737333043255,-500.0,0.00020485,2]
[349625294,1737333043265,-500.0,0.00020485,2]
[349625295,1737333043275,-500.0,0.00020485,2]
[349625296,1737333043285,-500.0,0.00020485,2]
[349625297,1737333043294,-500.0,0.00020485,2]
[349625298,1737333043304,-500.0,0.00020485,2]
[349625299,1737333043314,-500.0,0.00020485,2]
[349625300,1737333043325,-517.77,0.00020485,2]
[349625301,1737333043340,-500.0,0.00020485,2]
[349625302,1737333043350,-500.0,0.00020485,2]
[349625303,1737333043360,-500.0,0.00020485,2]
[349625304,1737333043370,-500.0,0.00020485,2]
[349625305,1737333043381,-500.0,0.00020485,2]
[349625306,1737333043394,-500.0,0.00020485,2]
[349625307,1737333043404,-500.0,0.00020485,2]
[349625308,1737333043414,-500.0,0.00020485,2]
[349625309,1737333043425,-500.0,0.00020485,2]
[349625310,1737333043435,-500.0,0.00020485,2]
[349625311,1737333043445,-500.0,0.00020485,2]
[349625312,1737333043454,-500.0,0.00020486,2]
[349625313,1737333043466,-500.0,0.00020486,2]
[349625314,1737333043477,-500.0,0.00020486,2]
[349625316,1737333043487,-500.0,0.00020486,2]
[349625318,1737333043496,-500.0,0.00020486,2]
[349625320,1737333043505,-500.0,0.00020486,2]
[349625322,1737333043514,-500.0,0.00020486,2]
[349625323,1737333043523,-500.0,0.00020486,2]
[349625324,1737333043533,-500.0,0.00020486,2]
[349625325,1737333043543,-500.0,0.00020486,2]
[349625326,1737333043554,-500.0,0.00020486,2]
[349625327,1737333043564,-500.0,0.00020486,2]
[349625328,1737333043574,-500.0,0.00020486,2]
[349625329,1737333043588,-500.0,0.00020486,2]
[349625330,1737333043605,-500.0,0.00020486,2]
[349625331,1737333043615,-500.0,0.00020486,2]
[349625332,1737333043625,-500.0,0.00020486,2]
[349625333,1737333043635,-500.0,0.00020486,2]
[349625334,1737333043645,-500.0,0.00020486,2]
[349625336,1737333043655,-500.0,0.00020486,2]
[349625339,1737333043669,-500.0,0.00020486,2]
[349625341,1737333043679,-500.0,0.00020486,2]
[349625343,1737333043688,-500.0,0.00020486,2]
[349625345,1737333043698,-500.0,0.00020486,2]
[349625347,1737333043708,-500.0,0.00020486,2]
[349625349,1737333043717,-500.0,0.00020486,2]
[349625351,1737333043727,-707.5,0.00020509,2]
[349625353,1737333043736,-150.0,0.00020578,2]
[349625355,1737333043746,-200.0,0.0002061,2]
[349625357,1737333043755,-178.02,0.00020648,2]
[349625359,1737333043766,-500.0,0.00020657,2]
[349625361,1737333043776,-500.0,0.00020657,2]
[349625363,1737333043786,-981.01,0.00020658,2]
[349625365,1737333043796,-500.0,0.00020658,2]
[349625367,1737333043806,-500.0,0.00020658,2]
[349625368,1737333043816,-2392.93,0.00020658,2]
[349625369,1737333043826,-500.0,0.00020658,2]
[349625370,1737333043841,-755.77,0.00020658,2]
[349625371,1737333043851,-500.0,0.00020658,2]
[349625372,1737333043861,-752.34,0.00020658,2]
[349625373,1737333043871,-500.0,0.00020658,2]
[349625374,1737333043881,-500.0,0.00020658,2]
[349625375,1737333043892,-649.29,0.00020658,2]
[349625376,1737333043902,-514.61,0.00020658,2]
[349625377,1737333043913,-1342.3,0.00020658,2]
[349625378,1737333043923,-912.67,0.00020658,2]
[349625379,1737333043933,-1257.41,0.00020658,2]
[349625380,1737333043944,-500.0,0.00020658,2]